Cogmind - Beta 15 @@@ ROGUE MODE // 2025.05.30 @ 22:23:00 Player: Selene Result: Destroyed by H-66 Slayer with Heavy Assault Rifle Performance ------------- Evolutions (5) 2500 Regions Visited (8) 1600 Robots Destroyed (107) 535 Value Destroyed (3385) 3385 Prototype IDs (9) 180 Alien Tech Used (0) 0 Bonus (1685) 1685 TOTAL SCORE: 9885 Bonus ------- High Alert Combat Kills 45 Follower Combat Kills 840 Registered with UFD 300 Met Optimus in HQ 500 Cogmind --------- Core Integrity 0/1000 Matter 295/300 Energy 130/150 System Corruption 7% Temperature Cool (0) Movement Walking (240) Ox2 Location -5/Upper Caves Parts ------- > --- POWER (1) -------- Light Angular Momentum Engine > --- PROPULSION (5) --- Carbon-fiber Leg Thunder Leg > --- UTILITY (9) ------ Huge Storage Unit Improved Terrain Scan Processor Makeshift Salvage Targeting Computer Advanced Targeting Computer Armor Integrity Analyzer Improved System Shield > --- WEAPON (2) ------- Companion Sword > --- INVENTORY (25) --- Advanced Heat Sink Advanced Heat Sink Improved Cooling System Structural Scanner Experimental Terrain Scanner ECM Suite Improved Hacking Suite High-powered Tractor Beam Tesla Rifle Tesla Rifle Heavy Laser High-powered Field Laser Makeshift Laser Wave Gun Overtuned Beamcaster Heavy Battle Rifle Improved Heavy Machine Gun KE Penetrator Overtuned Coil Gun Improved Remote Datajack CPS Tube (2) DRS Beacon (Ready) Peak State ------------ > --- POWER ------------ Neutrino Core > --- PROPULSION ------- Wheel Overtuned Huge Scrapsphere Overtuned Huge Scrapsphere > --- UTILITY ---------- Scrap Suit Huge Storage Unit IFF Parser Advanced Targeting Computer Advanced Melee Analysis Suite Improved Medium Armor Plating Hacking Suite Improved System Shield > --- WEAPON ----------- Long-range Proton Cannon Companion Sword > --- INVENTORY -------- Overtuned Huge Scrapsphere Improved Cooling System Structural Scanner Experimental Terrain Scanner Improved Terrain Scan Processor Seismic Detector Makeshift Salvage Targeting Computer Armor Integrity Analyzer ECM Suite Improved Medium Armor Plating Layered Medium Armor Plating High-powered Tractor Beam Tesla Rifle High-powered Field Laser Overtuned Beamcaster Long-range Proton Cannon Phase Cannon Improved Heavy Machine Gun KE Penetrator KE Penetrator Overtuned Coil Gun Long-range Missile Launcher CPS Tube DRS Beacon [Rating: 88] Favorites ----------- Power Subdweller Power Source Engine Subdweller Power Source Power Core Neutrino Core Propulsion Aluminum Leg Treads Medium Treads Leg Aluminum Leg Wheel Overtuned Huge Scrapsphere Utility Seismic Detector Device Seismic Detector Storage High-capacity Storage Unit Processor Advanced Targeting Computer Hackware Improved System Shield Protection Layered Medium Armor Plating Weapon Companion Sword Energy Gun Medium Laser Energy Cannon Proton Cannon Ballistic Gun Barrage Gun Launcher Rocket Launcher Impact Weapon Mace Slashing Weapon Companion Sword Build | -11 -10 -10 -10 -9 -9 -6 -5 -5 ------- Run | Yrd Mat Min Sub Rec Scr Fac Fac Upp Slots Evolved 10 | . . . . . . 8 2 . Power . | . . . . . . . . . Propulsion 3 | . . . . . . 3 . . Utility 7 | . . . . . . 5 2 . Weapon . | . . . . . . . . . Parts Attached 118 | 7 8 6 8 . 16 39 23 11 Power 22 | 1 1 3 2 . 4 5 4 2 Engine 15 | 1 1 3 2 . 4 1 1 2 Core 7 | . . . . . . 4 3 . Reactor . | . . . . . . . . . Propulsion 36 | 2 2 1 2 . 7 15 4 3 Treads 3 | . . . . . 2 . . 1 Leg 13 | 2 2 1 . . 2 4 . 2 Wheel 20 | . . . 2 . 3 11 4 . Hover . | . . . . . . . . . Flight . | . . . . . . . . . Utility 38 | 2 3 . 2 . 3 14 9 5 Device 18 | 1 2 . 1 . . 10 2 2 Storage 7 | 1 1 . . . 3 1 1 . Processor 5 | . . . . . . 1 2 2 Hackware 2 | . . . . . . 1 1 . Protection 6 | . . . 1 . . 1 3 1 Artifact . | . . . . . . . . . Weapon 22 | 2 2 2 2 . 2 5 6 1 Energy Gun 5 | 2 . . . . . 1 2 . Energy Cannon 4 | . . . . . . 2 1 1 Ballistic Gun 7 | . . . 2 . 1 1 3 . Ballistic Cannon . | . . . . . . . . . Launcher 3 | . . 2 . . . 1 . . Special Weapon . | . . . . . . . . . Impact Weapon 2 | . 2 . . . . . . . Slashing Weapon 1 | . . . . . 1 . . . Piercing Weapon . | . . . . . . . . . Special Melee Weapon . | . . . . . . . . . Unidentified Prototypes 3 | . . . . . 1 2 . . Parts Lost 50 | . 1 2 6 . . 14 17 10 Power 10 | . 1 1 1 . . 1 4 2 Propulsion 20 | . . 1 2 . . 10 4 3 Utility 14 | . . . 1 . . 3 7 3 Weapon 6 | . . . 2 . . . 2 2 Highest Loss Streak 8 | . 1 1 4 . . 6 8 7 To Critical Strikes 1 | . . . 1 . . . . . Average Backups 16 | 3 7 9 9 9 18 17 19 21 Power 1 | . . . 1 1 1 1 . . Propulsion . | . . . . . . . 1 1 Utility 7 | . 4 5 4 5 9 8 8 7 Weapon 6 | 1 2 3 4 3 5 5 8 11 Tool/Special . | . . . . . . . . . Unused Backups 54 | . 9 2 2 . 11 14 4 12 Power 1 | . . . 1 . . . . . Propulsion . | . . . . . . . . . Utility 27 | . 5 2 1 . 6 7 1 5 Weapon 23 | . 4 . . . 5 5 3 6 Tool/Special 3 | . . . . . . 2 . 1 Average Slot Usage (%) 89 | . 99 100 94 85 95 87 81 73 Engine 9 | . 14 14 12 14 13 2 . 3 Treads 1 | . . . . . . 3 . 4 Leg 9 | . 28 28 22 . 9 8 . . Wheel 11 | . . . 2 14 17 14 17 4 Device 13 | . 14 14 10 14 11 23 18 10 Storage 10 | . 14 14 14 14 14 6 5 5 Processor 5 | . . . . . . 5 6 22 Hackware 2 | . . . . . . 1 10 5 Protection 1 | . . . 3 . . 1 3 4 Energy Gun 7 | . 27 15 8 14 11 . . . Ballistic Gun 6 | . . . 9 14 12 3 2 . Launcher 1 | . . 12 9 . . . . . Slashing Weapon 3 | . . . . . 2 5 3 4 Peak Build Rating 88 | 7 9 10 13 12 25 66 88 75 Average Rating 35 | 5 7 8 10 12 19 56 75 69 On Entrance 21 | . 7 8 9 12 12 25 58 59 Naked Turns . | . . . . . . . . . Heaviest Build 208 | 14 19 23 26 22 208 207 123 112 Greatest Support 74 | 20 20 20 40 20 46 74 70 38 Greatest Overweight (x) 7 | . . 1 2 1 7 5 5 5 Average Overweight (x) 2 | . . . . 1 2 1 1 4 Largest Inventory Capacity 35 | 8 10 10 10 10 35 35 25 25 Average Capacity 19 | 7 8 10 10 10 22 20 22 25 Most Carried 35 | 4 10 10 10 9 35 35 25 25 Average Carried 18 | 3 7 9 9 9 20 20 21 22 Final Capacity 35 | 8 10 10 10 10 35 20 25 25 Final Carried 35 | 4 10 10 9 9 35 20 22 22 Class Distribution -------------------- 54% | Mutant 25% | Scavenger-Mutant 7% | Derelict-Mutant 6% | Hauler-Mutant 3% | Scavenger-Scrapper Dominant Class ---------------- Mutant | -10/Materials Mutant | -10/Mines Mutant | -10/Subcaves Mutant | -9/Recycling Mutant | -9/Scraptown Scavenger-Mutant | -6/Factory Scavenger-Scrapper | -5/Factory Scavenger-Mutant | -5/Upper Caves Resources | -11 -10 -10 -10 -9 -9 -6 -5 -5 ----------- Run | Yrd Mat Min Sub Rec Scr Fac Fac Upp Matter Collected 2915 | 270 75 136 279 . 542 647 606 360 Remotely . | . . . . . . . . . Salvage Created 3831 | 183 478 71 305 . . 1387 848 559 Parts 197 | 16 19 10 16 . . 72 43 21 Haulers Intercepted 1 | . 1 . . . . . . . Recyclers Shooed 6 | . 1 . . . . 4 1 . Parts Field Recycled . | . . . . . . . . . Retrieved Matter . | . . . . . . . . . Parts Self-Destructed 20 | . . . 9 . . . . 11 Prevented 1 | . . . . . . . . 1 Kills | -11 -10 -10 -10 -9 -9 -6 -5 -5 ------- Run | Yrd Mat Min Sub Rec Scr Fac Fac Upp Combat Hostiles Destroyed 70 | . 9 10 13 . . 21 10 7 Melee 21 | . . . . . . 13 2 6 Guns 19 | . 8 . 6 . . . 5 . Cannons 1 | . . . . . . 1 . . AOE 26 | . . 10 7 . . 7 1 1 Classes Destroyed 18 | 2 4 1 2 . . 6 2 1 Worker 8 | . . . . . . 6 2 . Builder 2 | . . . . . . 1 1 . Tunneler 7 | 6 . 1 . . . . . . Hauler 1 | . 1 . . . . . . . Recycler 6 | 1 1 . . . . 3 1 . Mechanic 3 | . . . . . . 2 1 . Operator 1 | . . . . . . . 1 . Turret 2 | . . . 2 . . . . . Watcher 4 | . 3 . . . . . 1 . Swarmer 19 | . 3 9 4 . . 3 . . Grunt 26 | . 6 . 1 . . 9 5 5 Brawler 2 | . . . . . . 1 . 1 Sentry 2 | . . . . . . . 2 . Demolisher 1 | . . 1 . . . . . . Hunter 7 | . . . . . . 4 1 2 Programmer 7 | . . . . . . 4 2 1 Subdweller 8 | . . . 8 . . . . . Decomposer 2 | . . . . . . . . 2 Mutant 1 | . . . . . . . . 1 Best Kill Streak 9 | 2 3 5 4 . . 9 5 2 Combat Bots Only 5 | . 3 4 4 . . 5 4 2 Max Kills in Single Turn 3 | 1 1 3 2 . . 2 2 1 Gunslinging 1 | . . . 1 . . . . . Exploded 3 | . . 3 2 . . 2 1 1 Melee 1 | . . . . . . 1 1 1 Uniques/NPCs Destroyed . | . . . . . . . . . Combat | -11 -10 -10 -10 -9 -9 -6 -5 -5 -------- Run | Yrd Mat Min Sub Rec Scr Fac Fac Upp Hostile Shots Fired 710 | . 49 12 112 . . 179 239 119 Missed 194 | . 13 2 51 . . 43 67 18 Hits 516 | . 36 10 61 . . 136 172 101 Projectile 516 | . 36 10 61 . . 136 172 101 AOE 2 | . . 1 . . . . 1 . Critical Strikes 18 | . . . 2 . . 2 10 4 Part Disruptions 2 | . . . . . . . 2 . Damage Taken 8820 | . 457 201 639 . . 2502 3073 1948 Core 1721 | . 87 20 95 . . 510 452 557 Absorbed by Shields 311 | . . . . . . 103 208 . Redirected to Shielding 110 | . . . . . . 110 . . Regen/Repaired (Parts) 69 | . 68 . . . . . 1 . Core Remaining (%) 53 | 100 . . . . 19 40 . . Volleys Fired 214 | 14 55 7 36 . . 24 65 13 Largest 2 | 2 2 2 2 . . 1 2 1 Hottest 185 | 90 90 90 80 . . 85 185 100 Shots Fired 329 | 28 101 8 53 . . 24 101 14 Gun 252 | 28 101 2 34 . . 4 77 6 Cannon 39 | . . . . . . 12 24 3 Launcher 38 | . . 6 19 . . 8 . 5 Special . | . . . . . . . . . Kinetic 94 | . . . 17 . . 4 73 . Thermal 175 | 28 101 2 17 . . 10 11 6 Explosive 38 | . . 6 19 . . 8 . 5 Electromagnetic 22 | . . . . . . 2 17 3 Robot Hit Streak 10 | 7 10 . 6 . . 7 7 10 Robot Miss Streak 7 | 2 3 5 7 . . 2 3 1 Penetration Max 1 | . . . . . . . 1 . Secondary Targets 2 | . . . 1 . . . 1 . Max Gunslinging Chain 1 | . . . 1 . . . 1 . Shots Hit Robots 301 | 19 69 . 31 . . 64 81 37 Core Hits 165 | 8 23 11 29 . . 40 30 24 Critical Kills 3 | . . . . . . . 3 . Critical Parts Destroyed 3 | . . . . . . . 3 . Critical Strikes 18 | 5 3 . 1 . . . 9 . Burn 11 | 5 3 . 1 . . . 2 . Destroy 6 | . . . . . . . 6 . Corrupt 1 | . . . . . . . 1 . Melee Attacks 152 | . 1 . . . . 86 26 39 Impact 1 | . 1 . . . . . . . Slashing 151 | . . . . . . 86 26 39 Piercing . | . . . . . . . . . Sneak Attacks 19 | . . . . . . 12 2 5 Combat Hostiles 2 | . . . . . . 2 . . Follow-up Attacks . | . . . . . . . . . Damage Inflicted 12245 | 232 815 472 1275 . . 4257 3089 2105 Guns 3248 | 232 815 . 358 . . 40 1693 110 Cannons 509 | . . . . . . 52 379 78 Explosions 3670 | . . 472 917 . . 1421 301 559 Melee 4818 | . . . . . . 2744 716 1358 Ramming . | . . . . . . . . . Kinetic 1851 | . . . 241 . . 40 1570 . Thermal 1768 | 232 815 . 117 . . . 494 110 Explosive 3369 | . . 472 917 . . 1421 . 559 Electromagnetic 439 | . . . . . . 52 309 78 Impact . | . . . . . . . . . Slashing 4818 | . . . . . . 2744 716 1358 Piercing . | . . . . . . . . . Highest Corruption 7 | . . . . . . 2 3 7 Average Corruption 3 | . . . . . . 1 2 3 Corruption Purged . | . . . . . . . . . Corruption Blocked . | . . . . . . . . . Effects 54 | . . . . . . 2 4 48 Message Errors 9 | . . . . . . . . 9 Matter Fused 12 | . . . . . . . . 12 Heat Flow Errors 11 | . . . . . . 1 1 9 Energy Discharges 9 | . . . . . . . 1 8 Parts Fused 2 | . . . . . . . 1 1 Data Loss (minor) 4 | . . . . . . . . 4 Data Loss (major) 2 | . . . . . . . . 2 Misfires 2 | . . . . . . . 1 1 Alerts 3 | . . . . . . 1 . 2 Overload Shots . | . . . . . . . . . Overflow Damage 655 | . . 2 . . . 369 182 102 Projectiles 2 | . . . . . . 2 . . Explosions 106 | . . 2 . . . 23 81 . Melee 547 | . . . . . . 344 101 102 Knockbacks . | . . . . . . . . . Impact . | . . . . . . . . . Kinetic . | . . . . . . . . . Secondary . | . . . . . . . . . Self-Inflicted Damage 476 | . . 85 59 . . 143 143 46 Shots 11 | . . 2 2 . . 3 2 2 Rammed . | . . . . . . . . . Targets Rammed . | . . . . . . . . . Kicked . | . . . . . . . . . Crushed . | . . . . . . . . . Highest Temperature 294 | 150 284 30 3 . . 132 231 294 Average Temperature 68 | 53 92 17 3 . . 34 32 104 Received Heat Transfer 1687 | . 219 . 258 . . 227 731 252 Effects 4 | . 4 . . . . . . . Interference 4 | . 4 . . . . . . . Siege Activations . | . . . . . . . . . Martial Activations . | . . . . . . . . . Shielding Activations . | . . . . . . . . . Robots Disrupted 1 | . . . . . . . 1 . Combat Hostiles 1 | . . . . . . . 1 . Robots Corrupted 2 | . . . . . . . 2 . Combat Hostiles 2 | . . . . . . . 2 . Parts Fried 3 | . . . . . . . 3 . Impact Corruptions . | . . . . . . . . . Robots Melted 1 | . 1 . . . . . . . Combat Hostiles 1 | . 1 . . . . . . . Parts Melted 11 | 1 9 . . . . . 1 . Heat Transferred 4564 | 1002 2331 . 407 . . . 624 200 Parts Sabotaged . | . . . . . . . . . Parts Stolen . | . . . . . . . . . Parts Stripped . | . . . . . . . . . Power Chain Reactions . | . . . . . . . . . Alert | -11 -10 -10 -10 -9 -9 -6 -5 -5 ------- Run | Yrd Mat Min Sub Rec Scr Fac Fac Upp Maximum Alert Level 2 | . . . . . . 1 2 . Low Security (%) 75 | 100 100 100 . 100 . 66 42 . Level 1 20 | . . . . . . 33 40 . Level 2 4 | . . . . . . . 17 . Level 3 . | . . . . . . . . . Level 4 . | . . . . . . . . . Level 5 . | . . . . . . . . . High Security . | . . . . . . . . . Max Security . | . . . . . . . . . Peak Influence 531 | 5 69 128 . 30 . 287 531 . Initial 137 | . . 1 . 16 . . 137 . Average 111 | 1 22 53 . 5 . 128 242 . Influence Increases 3294 | 35 278 307 270 40 . 802 1337 225 Destroy 0b10 Robot/C 1680 | . 180 200 140 . . 420 540 200 Destroy 0b10 Robot/NC 170 | 35 25 5 . . . 60 45 . Destroy Leader 290 | . 38 30 10 . . 90 122 . Allied During Kill 177 | . . . . . . . 152 25 Successful Hack 82 | . 20 . . 10 . 28 24 . Select Force Hacks 30 | . . . . 30 . . . . Disable Machine 255 | . 15 15 . . . 15 210 . Destroy Structure 310 | . . 57 . . . 69 184 . Partial Spotted 30 | . . . . . . 30 . . Lose Combat Pursuer 270 | . . . 120 . . 90 60 . Influence Decreases 3256 | 35 273 274 272 76 . 522 1319 485 Entered New Map 299 | . . 4 21 20 . . 143 111 Time Decay 2030 | 35 273 250 227 56 . 409 446 334 Lost Part 367 | . . 20 24 . . 113 170 40 Lost Ally 260 | . . . . . . . 260 . Purge Threat 300 | . . . . . . . 300 . Squads Dispatched 23 | . . . . . . 10 13 . Investigation 11 | . . . . . . 4 7 . Extermination 5 | . . . . . . 3 2 . Reinforcement 7 | . . . . . . 3 4 . Assault . | . . . . . . . . . Garrison . | . . . . . . . . . Intercept . | . . . . . . . . . Searches Triggered . | . . . . . . . . . Construction Impeded 1 | . . . . . . 1 . . Haulers Reinforced 3 | . . . . . . . 3 . Active Scanning Responses . | . . . . . . . . . Cargo Convoy Interrupts . | . . . . . . . . . Stealth | -11 -10 -10 -10 -9 -9 -6 -5 -5 --------- Run | Yrd Mat Min Sub Rec Scr Fac Fac Upp Distress Signals 3 | . 1 1 . . . 1 . . Communications Jammed . | . . . . . . . . . Distress Signals . | . . . . . . . . . Times Spotted 119 | . 13 5 21 . . 33 37 10 Peak Tracking Total 6 | . 3 3 4 . . 5 6 3 Tactical Retreats 14 | . . . 4 . . 6 4 . Traps | -11 -10 -10 -10 -9 -9 -6 -5 -5 ------- Run | Yrd Mat Min Sub Rec Scr Fac Fac Upp Traps Triggered 3 | . . . . . . 2 1 . Indirectly . | . . . . . . . . . Trap Hack Attempts . | . . . . . . . . . Triggered . | . . . . . . . . . Disarmed . | . . . . . . . . . Reprogrammed . | . . . . . . . . . Reused . | . . . . . . . . . Traps Extracted . | . . . . . . . . . Installed 1 | . . . 1 . . . . . Triggered . | . . . . . . . . . Machines | -11 -10 -10 -10 -9 -9 -6 -5 -5 ---------- Run | Yrd Mat Min Sub Rec Scr Fac Fac Upp Machines Disabled 21 | . 1 1 3 . . 1 14 1 Max in Single Turn 4 | . 1 1 2 . . 1 4 1 Garrison Access 1 | . . . . . . . 1 . Machines Repaired . | . . . . . . . . . Machines Dismantled . | . . . . . . . . . Machines Sabotaged . | . . . . . . . . . Overloaded Fab Kills . | . . . . . . . . . Hacking | -11 -10 -10 -10 -9 -9 -6 -5 -5 --------- Run | Yrd Mat Min Sub Rec Scr Fac Fac Upp Machines Accessed 35 | . 8 1 . 3 6 7 9 1 Terminals 11 | . 5 1 . 2 . 1 2 . Fabricators 1 | . . . . . . . 1 . Repair Stations 2 | . 1 . . . . 1 . . Recycling Units 11 | . 2 . . 1 . 3 5 . Scanalyzers 2 | . . . . . . 2 . . Garrison Access 1 | . . . . . . . 1 . Total Hacks 119 | . 30 4 . 9 22 14 39 1 Successful 76 | . 21 1 . 5 22 5 21 1 Failed 43 | . 9 3 . 4 . 9 18 . Catastrophic 7 | . 2 . . . . 1 4 . Database Lockouts . | . . . . . . . . . Manual 50 | . 22 5 . 4 . 9 10 . Terminals 53 | . 21 4 . 7 . 4 17 . Fabricators 5 | . . . . . . . 5 . Repair Stations 4 | . 3 . . . . 1 . . Recycling Units 28 | . 6 . . 2 . 4 16 . Scanalyzers 5 | . . . . . . 5 . . Garrison Access 1 | . . . . . . . 1 . Terminal Hacks 42 | . 9 1 . 2 22 . 7 1 Record 21 | . . . . . 21 . . . Part Schematic 2 | . 2 . . . . . . . Robot Analysis 5 | . 3 . . 1 . . 1 . Open Door 2 | . . . . . 1 . . 1 Branch Access Points 1 | . . . . . . . 1 . Terminal Index 2 | . 1 . . . . . 1 . Recycling Unit Index 1 | . . . . 1 . . . . Unreport Threat 2 | . . . . . . . 2 . Locate Traps 1 | . 1 . . . . . . . Recall Investigation 1 | . . . . . . . 1 . Hauler Manifests 1 | . 1 . . . . . . . Registered Prototypes 1 | . . . . . . . 1 . Zone Layout 2 | . 1 1 . . . . . . Fabricator Hacks 2 | . . . . . . . 2 . Network Status 1 | . . . . . . . 1 . Build 1 | . . . . . . . 1 . Repair Station Hacks 2 | . 2 . . . . . . . Scan Component 1 | . 1 . . . . . . . Repair 1 | . 1 . . . . . . . Recycling Unit Hacks 7 | . 2 . . 1 . . 4 . Retrieve Components 7 | . 2 . . 1 . . 4 . Scanalyzer 1 | . . . . . . 1 . . Insert Component 1 | . . . . . . 1 . . Garrison Access Hacks 1 | . . . . . . . 1 . Seal Access 1 | . . . . . . . 1 . Unauthorized Hacks 21 | . 8 . . 2 . 4 7 . Terminals 8 | . 4 . . 1 . 1 2 . Botnet 8 | . 4 . . 1 . 1 2 . Fabricators . | . . . . . . . . . Repair Stations 2 | . 1 . . . . 1 . . Mechanics 2 | . 1 . . . . 1 . . Recycling Units 11 | . 3 . . 1 . 2 5 . Reject 2 | . 2 . . . . . . . Recyclers 1 | . 1 . . . . . . . Tunnel 1 | . . . . 1 . . . . Fedlink 5 | . . . . . . 2 3 . Scrapoids 2 | . . . . . . . 2 . Scanalyzers . | . . . . . . . . . Garrison Access . | . . . . . . . . . Data Cores Recovered . | . . . . . . . . . Used . | . . . . . . . . . Hacking Detections 17 | . 6 1 . 2 . 4 4 . Full Trace Events 3 | . . . . . . 1 2 . Feedback Events . | . . . . . . . . . Feedback Blocked . | . . . . . . . . . Robot Schematics Acquired . | . . . . . . . . . Robots Built 3 | . . . . . . . 3 . Authchips . | . . . . . . . . . Time 84 | . . . . . . . 84 . Total Robot Build Rating 18 | . . . . . . . 18 . Part Schematics Acquired 2 | . 2 . . . . . . . Parts Built . | . . . . . . . . . Authchips . | . . . . . . . . . Time . | . . . . . . . . . Total Part Build Rating . | . . . . . . . . . Parts Repaired 1 | . 1 . . . . . . . Time 26 | . 26 . . . . . . . Parts Recycled . | . . . . . . . . . Recycled Matter . | . . . . . . . . . Retrieved Matter . | . . . . . . . . . Retrieved Components 32 | . 13 . . 2 . . 17 . Parts Scanalyzed . | . . . . . . . . . Part Schematics Acquired . | . . . . . . . . . Parts Damaged . | . . . . . . . . . Bothacking | -11 -10 -10 -10 -9 -9 -6 -5 -5 ------------ Run | Yrd Mat Min Sub Rec Scr Fac Fac Upp Used RIF Installer . | . . . . . . . . . Robots Hacked . | . . . . . . . . . Non-combat . | . . . . . . . . . Combat . | . . . . . . . . . Robot Hacks Applied . | . . . . . . . . . Relay Couplers Released 2 | . . . . . . . 2 . Machine Destruction 2 | . . . . . . . 2 . Fabnet Peak Effective % . | . . . . . . . . . Robots Rewired 4 | . . . . . . . 1 3 Allies Hacked 1 | . . . . . . . 1 . Hacks Repelled . | . . . . . . . . . Allies | -11 -10 -10 -10 -9 -9 -6 -5 -5 -------- Run | Yrd Mat Min Sub Rec Scr Fac Fac Upp Total Allies 17 | . . . . . . . 14 3 Largest Group 5 | . . . . . . . 5 3 Highest-Rated Group 235 | . . . . . . . 235 87 Highest-Rated Ally 47 | . . . . . . . 47 29 Total Orders . | . . . . . . . . . Ally Attacks 140 | . . . . . . . 116 24 Total Damage 3087 | . . . . . . . 2779 308 Kills 24 | . . . . . . . 20 4 Allies Corrupted . | . . . . . . . . . Allies Melted . | . . . . . . . . . Intel | -11 -10 -10 -10 -9 -9 -6 -5 -5 ------- Run | Yrd Mat Min Sub Rec Scr Fac Fac Upp Active Infowar (turns) 7535 | 6 881 660 811 . . 1542 966 2669 IFF 116 | . . . . . . . 116 . Terrain 2782 | . . . . . . 785 . 1997 Structural 326 | . . . . . . 16 310 . Seismic 6488 | 6 881 660 811 . . 1526 865 1739 Jamming 671 | . . . . . . . . 671 ECM 131 | . . . . . . 131 . . Robot Analysis Total 5 | . 3 . . 1 . . 1 . Derelict Logs Recovered 6 | . . 1 . . 3 . . 2 Drone Launches . | . . . . . . . . . Drone Recoveries . | . . . . . . . . . Exploration | -11 -10 -10 -10 -9 -9 -6 -5 -5 ------------- Run | Yrd Mat Min Sub Rec Scr Fac Fac Upp Turns Passed 14111 | 226 938 660 1200 254 5152 1683 1119 2879 Spaces Moved 6923 | 125 580 408 721 212 2273 959 710 935 Core 19 | 19 . . . . . . . . Treads 202 | . . . . . 49 8 . 145 Legs 2771 | 106 580 408 597 . 978 92 . 10 Wheels 3931 | . . . 124 212 1246 859 710 780 Hover . | . . . . . . . . . Flight . | . . . . . . . . . Fastest Speed 50 | 50 120 120 110 120 110 95 80 110 Average Speed 160 | 109 120 120 149 120 221 126 98 163 Slowest Speed 470 | 120 120 190 260 120 340 470 120 400 Overloaded Moves . | . . . . . . . . . Propulsion Burnouts . | . . . . . . . . . Robots Hopped . | . . . . . . . . . Potential Cave-ins . | . . . . . . . . . Cave-ins Triggered . | . . . . . . . . . Exploration Rate (%) 49 | 7 73 87 35 37 93 24 22 65 Regions Visited 8 Branch Regions 5 Pre-discovered Areas 5 | . . 1 . 1 1 1 . 1 Known Exits Taken 2 | . . . . . . 1 1 . Unknown Exits Taken 6 | 1 1 1 1 1 1 . . . Scrap Searched 13 | . . 1 4 . 6 . . 2 Spaces Dug 52 | . . 12 . . . 24 12 4 Terrain Destroyed 415 | . . 65 115 . . 82 91 62 Melee 30 | . . . . . . 18 9 3 Projectile 35 | . . . 2 . . 10 22 1 AOE 349 | . . 65 113 . . 54 59 58 Terrain Rammed . | . . . . . . . . . Walls Destroyed . | . . . . . . . . . Machines Disabled . | . . . . . . . . . Actions | -11 -10 -10 -10 -9 -9 -6 -5 -5 --------- Run | Yrd Mat Min Sub Rec Scr Fac Fac Upp Total 9423 | 183 726 566 791 211 2412 1297 1017 2220 Wait 1651 | 33 48 133 4 . 15 111 138 1169 Move 6915 | 124 579 407 720 211 2272 958 709 935 Hop . | . . . . . . . . . Pick Up 159 | 5 18 6 7 . 63 26 22 12 Fast Attach 42 | 6 2 . 3 . 8 15 6 2 Attach 43 | 1 2 2 3 . . 14 10 11 Detach 4 | . . . . . 2 1 . 1 Swap 102 | . 7 7 11 . 15 31 20 11 Drop 113 | . 14 4 6 . 37 31 18 3 Fire 214 | 14 55 7 36 . . 24 65 13 Melee 152 | . 1 . . . . 86 26 39 Ram . | . . . . . . . . . Kick . | . . . . . . . . . Crush . | . . . . . . . . . Escape Stasis . | . . . . . . . . . Rewire 27 | . . . . . . . 3 24 Trap 1 | . . . 1 . . . . . Miscellaneous . | . . . . . . . . . Route ------- -11/Scrapyard -10/Materials (discovered 3 exits: [*Mat x2] / *Min) -10/Mines (discovered 3 exits: [*Mat x2] / [*Sub]) -10/Subcaves (discovered 3 exits: [*Mat x2] / *Rec) -9/Recycling -9/Scraptown (discovered 2 exits: *Fac x2) -6/Factory (discovered 4 exits: *Fac x3 / [*Low]) -5/Factory (discovered 3 exits: [*Fac] / *Upp x2) -5/Upper Caves (discovered 1 exit: [Upp]) History --------- Turn | Location | Event 5 | -11/Scrapyard | Discovered new exit (range 16) 227 | -11/Scrapyard | Entered Materials 318 | -10/Materials | Build established: Mutant 612 | -10/Materials | Discovered new exit (range 10) 893 | -10/Materials | Discovered new exit (range 13) 1127 | -10/Materials | Repaired Med. Laser 1133 | -10/Materials | Discovered new exit (range 15) 1165 | -10/Materials | Entered Mines 1238 | -10/Mines | A weapon hastily lodged in a ceiling crevice suddenly fell to the ground 1277 | -10/Mines | Discovered new exit (range 16) 1331 | -10/Mines | Assembled infested the area 1482 | -10/Mines | Joined a pair of Derelicts in attacking an 0b10 outpost 1547 | -10/Mines | Learned location of Zion (-7) 1692 | -10/Mines | Discovered new exit (range 10) 1811 | -10/Mines | Discovered new exit (range 4) 1825 | -10/Mines | Entered Subcaves 1826 | -10/Subcaves | Approached by a straggling Scientist 1895 | -10/Subcaves | Discovered new exit (range 2) 2177 | -10/Subcaves | Core integrity fell below 50% 2210 | -10/Subcaves | Discovered new exit (range 12) 2293 | -10/Subcaves | A swath of the cavern ceiling suddenly collapsed 2339 | -10/Subcaves | Discovered new exit (range 7) 2466 | -10/Subcaves | Build established: Scavenger-Mutant 2682 | -10/Subcaves | Disturbed a concealed Subdweller 2932 | -10/Subcaves | Core integrity fell below 20% 2936 | -10/Subcaves | Lost 4 parts (1n1u2w) 2976 | -10/Subcaves | Build established: Mutant 3025 | -10/Subcaves | Entered Recycling 3053 | -9/Recycling | Scanned before Scraplab entrance 3265 | -9/Recycling | Entered Scraplab 3275 | -9/Recycling | Discovered new exit (range 3) 3279 | -9/Recycling | Entered Scraptown 3728 | -9/Scraptown | Scanned Subdweller tech in exchange for log data 3735 | -9/Scraptown | Learned Research stockpile data 3738 | -9/Scraptown | Learned location of 1 exit from Factory 3783 | -9/Scraptown | Discovered new exit (range 11) 3939 | -9/Scraptown | Heard Great Nut preacher, LISTEN AND RECITE! 3983 | -9/Scraptown | Visited Assassins FH 4089 | -9/Scraptown | Visited The Evicted 4150 | -9/Scraptown | Visited UFD Registry 4150 | -9/Scraptown | Registered with UFD as "Wrenchbomber" 4204 | -9/Scraptown | Visited Comm Corps 4364 | -9/Scraptown | Visited Spacefarers 4446 | -9/Scraptown | Visited Cyclists 4476 | -9/Scraptown | Entered Cyclist Reading Room 4548 | -9/Scraptown | Visited IN-MT5's Study 5307 | -9/Scraptown | Visited Chapter 10 5705 | -9/Scraptown | Guru changed UFD alias to "Flashdrive" 6058 | -9/Scraptown | Visited Botcube Research 6082 | -9/Scraptown | Found Lrg. Botcube 6171 | -9/Scraptown | Visited Infowarlord's Domain 6226 | -9/Scraptown | Visited Sword Containment 6273 | -9/Scraptown | Visited Scrap Suit Storage 6304 | -9/Scraptown | Visited Scrapoid Research Area 6403 | -9/Scraptown | Visited DA-N13 Charitable Foundation 6433 | -9/Scraptown | Found DCF Scrap (27 items) 6487 | -9/Scraptown | Visited Derelict Rescue Squad 6494 | -9/Scraptown | Found DRS Beacon 6628 | -9/Scraptown | Visited Junk Repository 6743 | -9/Scraptown | Build established: Derelict-Mutant 7230 | -9/Scraptown | Build established: Mutant 7407 | -9/Scraptown | Found Exp. Terrain Scanner 7890 | -9/Scraptown | Build established: Hauler-Mutant 8215 | -9/Scraptown | Found Scrap Suit 8220 | -9/Scraptown | Found Scrap Suit 8309 | -9/Scraptown | Met Optimus 8309 | -9/Scraptown | Accepted into 0bPrime 8427 | -9/Scraptown | Discovered new exit (range 3) 8431 | -9/Scraptown | Entered Factory 8431 | -6/Factory | Evolved 8 slots: Propulsion x3, Utility x5 8432 | -6/Factory | Identified exit to Factory 8485 | -6/Factory | Discovered new exit (range 9) 9055 | -6/Factory | Loaded intel: 8 recycling unit locations 9102 | -6/Factory | Build established: Mutant 9167 | -6/Factory | Lost 6 parts (1p4n1u) 9406 | -6/Factory | Discovered exit to Factory (range 15) 9664 | -6/Factory | Core integrity fell below 50% 9699 | -6/Factory | Lost 4 parts (2n2u) 9715 | -6/Factory | Build established: Scavenger-Mutant 10023 | -6/Factory | Discovered exit to Factory (range 16) 10031 | -6/Factory | Learned location of Protoforge (-2) 10114 | -6/Factory | Entered another Factory area 10114 | -5/Factory | Evolved 2 slots: Utility x2 10209 | -5/Factory | Loaded intel: 8 recycling unit locations 10370 | -5/Factory | Scrapoid reinforcements arrived 10420 | -5/Factory | Identified exit to Upper Caves 10514 | -5/Factory | Lost 5 allies 10740 | -5/Factory | Fabricated B-60 Warrior? 10822 | -5/Factory | Build established: Scavenger-Scrapper 10963 | -5/Factory | Scrapoid reinforcements arrived 11049 | -5/Factory | Discovered new exit (range 13) 11052 | -5/Factory | Lost 3 allies 11104 | -5/Factory | Lost 4 parts (2p1n1u) 11131 | -5/Factory | Spotted B-75 Beast 11229 | -5/Factory | Lost 8 parts (1n5u2w) 11233 | -5/Factory | Entered Upper Caves 11239 | -5/Upper Caves | Attacked by a delusional Derelict stockpiling Unaware 11243 | -5/Upper Caves | Core integrity fell below 50% 11466 | -5/Upper Caves | Build established: Mutant 11527 | -5/Upper Caves | Attracted the attention of an 0b10 checkpoint 11909 | -5/Upper Caves | Encountered a Warlord checkpoint 12131 | -5/Upper Caves | Build established: Scavenger-Mutant 12920 | -5/Upper Caves | Learned 4 Factory zone layouts 12942 | -5/Upper Caves | Learned location of Armory (-4) 13659 | -5/Upper Caves | Discovered new exit (range 29) 14029 | -5/Upper Caves | Ambushed by research squad 14041 | -5/Upper Caves | Core integrity fell below 20% 14097 | -5/Upper Caves | Lost 7 parts (1p2n3u1w) 14112 | -5/Upper Caves | Destroyed by H-66 Slayer with Heavy Assault Rifle Last Messages --------------- repair. 14068_ H-66 Slayer destroyed. 14069_ Tesla Rifle self-destruct mechanism malfunctions. 14070_ System corrupted: Component data lost. 14076_ Acquired Imp. Remote Datajack. 14077_ Acquired 100 matter. 14079_ Lgt. Fission Core fries itself beyond repair. 14079_ Targeting Computer fries itself beyond repair. 14081_ Hvy. Assault Rifle fries itself beyond repair. 14081_ Acquired Tesla Rifle. 14082_ Gauss Rifle fries itself beyond repair. 14094_ System corrupted: Heat flow error (+158). 14098_ Penetrated by Slug. 14109_ H-66 Slayer destroyed. 14112_ Penetrated by Slug. 14112_ Lrn. Proton Cannon destroyed. Map ----- +----------------------------------------------------+ | | | ?????????????????????????????????????????????????? | | ?????????????????????????????????????????????????? | | ?????????????????????????????????????????????????? | | ?????????????????????????????????????????????????? | | ?????????????????????????????????????????????????? | | ?????????????????????????????????????????????????? | | ?????????????????????????????????????????????????? | | ?????????????????????????????????????????????????? | | ?????????????????????????????????????????????????? | | ?????????????????????????????????????????????????? | | ?????????????????????????????????????????????????? | | ?????????????????????????????????????????????????? | | ?????????????????????????????????????????????????? | | ?????????????????????????????????????????????????? | | ?????????????????????????????????????????????????? | | ???????????????????????????????????????????#####?? | | ?????????????????????????????????????####### ##? | | ????????????????????????????????###### ## | | ??????????????????????????####### # | | ??????????????????????????# ## ### # | | ????????????????######????# #?## | | ????????????????# ##?##% #### | | ????????????????# ###;" # | | ?????????????# # !%### ### ## | | ?????????????# [@#?# ##### ### | | ???????# ### ###### #######?# | | ????????# ############ #######?## | | ????????# ############# ### #### | | ???????? h ### ### #### | | ????????? ############# ?# #### | | ?????????????###??##### ## ## ##### | | ???????????? ######### ## ## ### | | ???????????? ?#####?## ## ## """" ## | | ???????????? ####### ## # """" | | ??????????? ? ##### # """" ### | | ?????????? ? ##? "" ###### | | ????????? ## ### "" ### | | ?????????###? ### ### """" | | ??????????### ### #?## "" ## | | ????????###### ? ### ?## #### | | ????????####?# ? ? ##### ##### | | ?????????##### ## ? ##### #### | | ??????? #### ####?? ### ### ## #### | | ???????? #### ### ## ## ### ? | | ??????? < #?# ?##### ### #### | | ??????? ? #?# ?####### #### ####### | | ??????? ########### ####### ###?#### | | ???????## ? ######?### ######## # ####### | | ???????#? ########### ###### # ###### | +----------------------------------------------------+ Best States ------------- Heat Dissipation 47 Energy Generation 20 Energy Capacity 315 Matter Stores 300 Matter Capacity 300 Sight Range 16 Terrain Scan Range 30 Terrain Scan Density 110 ECM Strength 1 Jamming Range 14 Power Amplification 20 Additional Mass Support 6 Armor Coverage 450 Utility Shielding 66 Melee Speed Boost 20 Evasion (%) 55 Targeting Accuracy 8 Melee Accuracy 8 Armor Integrity Analysis 30 Recoil Reduction 2 Salvage Targeting 4 Offensive Hacking 10 Defensive Hacking 12 Item Schematics ----------------- Hcp. Storage Unit | -10/Materials | Hacked Structural Scanner | -10/Materials | Hacked Robot Schematics ------------------ None Fabricated ------------ B-60 Warrior | x3 | -5/Factory | Preloaded Repaired ---------- Med. Laser | 2% | -10/Materials Alien Tech Used ----------------- None Achievements -------------- None Challenges ------------ None Game ------ Seed NovaSpikedInterpreter Manual? 0 Play Time 01:42:34 Cumulative 205.3 hours Start 2025.05.30 @ 20:42:05 End 2025.05.30 @ 22:23:00 Sessions 1 Manual Loads 0 Difficulty Rogue Special Mode None Game No. 132 Rogue 128 Adventurer 4 Explorer 0 Win Type - Total 7 Types 6/0/1/0/0/0/0/0/0/0 Lore% 79 Gallery% 69 Achievement% 60 Wizard Run 0 Options --------- Layout 1 ASCII 0 Keyboard 1 Movement Vi Keybinds 1 Fullscreen 2 Font 24/Smallcaps Map View 50x35 Zoom Use 0% Tactical HUD 1 Map Filters NONE Filters NONE Steam 1 RUN: ba9b2db4-1ade-4639-9ac7-a36e8ed800f6